[Event "DVM U12w 2024"]
[Site "Bad Homburg"]
[Date "2024.12.28"]
[Round "4"]
[White "Huang, Jasmin Shuya"]
[Black "Frydel, Helena"]
[Result "1-0"]
[ECO "B52"]
[WhiteElo "1523"]
[BlackElo "1514"]
[Annotator "NA RC"]
[PlyCount "123"]
[EventDate "2024.12.23"]
[EventType "team-tourn"]
[EventRounds "7"]
[EventCountry "GER"]
[SourceTitle "playchess.com"]
[Source "ChessBase"]
[SourceQuality "1"]
[TimeControl "40/5400+30:1800+30"]

1. e4 {[%emt 0:00:02]} c5 {[%emt 0:00:04]} 2. Nf3 {[%emt 0:00:04]} d6 {[%emt 0:00:06]} 3. Bb5+ {[%emt 0:00:25]} Bd7 {[%emt 0:00:21]} 4. Bxd7+ {[%emt 0:00:05]} Qxd7 {[%emt 0:01:02]} 5. c4 {[%emt 0:00:09]} Nf6 {[%emt 0:00:11]} 6. Nc3 {[%emt 0:00:05]} Nc6 {[%emt 0:01:04]} 7. d4 {[%emt 0:00:06]} cxd4 {[%emt 0:01:29]} 8. Nxd4 {[%emt 0:00:04]} Ne5 {[%emt 0:01:35]} 9. b3 {[%emt 0:00:19]} e6 {[%emt 0:00:35]} 10. f3 {[%emt 0:03:28]} Be7 {[%emt 0:03:09]} 11. Be3 {[%emt 0:01:31]} Rc8 {[%emt 0:04:01]} 12. Rc1 {[%emt 0:02:11]} O-O {[%emt 0:03:20]} 13. O-O {[%emt 0:01:28]} d5 {[%emt 0:00:19]} 14. exd5 {[%emt 0:02:01]} exd5 {[%emt 0:00:13]} 15. cxd5 {[%emt 0:00:53]} Rxc3 {[%emt 0:03:13]} 16. Rxc3 {[%emt 0:03:30]} Nxd5 {[%emt 0:00:09]} 17. Nf5 {[%emt 0:04:18]} Nxc3 {[%emt 0:03:27]} 18. Qxd7 {[%emt 0:00:24]} Nxd7 {[%emt 0:00:06]} 19. Nxe7+ {[%emt 0:00:05]} Kh8 {[%emt 0:00:10]} 20. Nf5 {[%emt 0:02:33]} h6 {[%emt 0:04:29]} 21. Kf2 {[%emt 0:07:31]} a6 {[%emt 0:05:21]} 22. Nxh6 {[%emt 0:03:57]} Nxa2 {[%emt 0:10:12]} 23. Rd1 {[%emt 0:02:46]} Nf6 {[%emt 0:06:56]} 24. Rd8 {[%emt 0:02:13]} Rxd8 {[%emt 0:06:53]} 25. Nxf7+ {[%emt 0:00:08]} Kg8 {[%emt 0:00:11]} 26. Nxd8 {[%emt 0:00:04]} b5 {[%emt 0:01:21]} 27. Ke2 {[%emt 0:00:24]} Nc3+ {[%emt 0:01:00]} 28. Kd3 {[%emt 0:00:28]} Nfd5 {[%emt 0:02:38]} 29. Ne6 {[%emt 0:01:12]} Kf7 {[%emt 0:02:06]} 30. Nc5 {[%emt 0:01:29]} a5 {[%emt 0:03:25]} 31. Bd4 {[%emt 0:00:38]} Na2 {[%emt 0:00:40]} 32. Ke4 {[%emt 0:00:40]} Nab4 {[%emt 0:03:02]} 33. h4 {[%emt 0:01:19]} g6 {[%emt 0:03:47]} 34. g4 {[%emt 0:00:36]} Ke8 {[%emt 0:05:14]} 35. f4 {[%emt 0:00:45]} Kf7 {[%emt 0:02:10]} 36. f5 {[%emt 0:00:29]} gxf5+ {[%emt 0:00:14]} 37. Kxf5 {[%emt 0:00:11]} Ne7+ {[%emt 0:01:26]} 38. Kg5 {[%emt 0:01:12]} Nbc6 {[%emt 0:01:49]} 39. Bc3 {[%emt 0:00:52]} b4 {[%emt 0:01:14]} 40. Bb2 {[%emt 0:00:12]} Nd5 {[%emt 0:01:40]} 41. h5 {[%emt 0:31:14]} Kg8 {[%emt 0:35:40]} 42. Ne4 {[%emt 0:01:24]} Nde7 {[%emt 0:07:04]} 43. h6 {[%emt 0:01:39]} Kh7 {[%emt 0:00:57]} 44. Nf6+ {[%emt 0:00:13]} Kh8 {[%emt 0:00:08]} 45. Kh5 {[%emt 0:00:35]} Ng8 {[%emt 0:01:32]} 46. Nxg8+ {[%emt 0:00:48]} Kxg8 {[%emt 0:00:09]} 47. g5 {[%emt 0:00:05]} Kh7 {[%emt 0:01:42]} 48. g6+ {[%emt 0:00:09]} Kg8 {[%emt 0:00:09]} 49. h7+ {[%emt 0:00:04]} Kf8 {[%emt 0:00:12]} 50. h8=Q+ {[%emt 0:00:05]} Ke7 {[%emt 0:00:14]} 51. Qf6+ {[%emt 0:00:16]} Kd7 {[%emt 0:00:14]} 52. g7 {[%emt 0:00:17]} Ne7 {[%emt 0:00:38]} 53. Be5 {[%emt 0:00:26]} a4 {[%emt 0:00:52]} 54. Qd6+ {[%emt 0:00:09]} Ke8 {[%emt 0:00:59]} 55. Bf6 {[%emt 0:01:06]} Ng8 {[%emt 0:00:32]} 56. Qf8+ {[%emt 0:00:26]} Kd7 {[%emt 0:00:09]} 57. Qxg8 {[%emt 0:00:12]} a3 {[%emt 0:00:19]} 58. Qa8 {[%emt 0:00:04]} Ke6 {[%emt 0:00:08]} 59. g8=Q+ {[%emt 0:00:12]} Kxf6 {[%emt 0:00:09]} 60. Qc6+ {[%emt 0:00:19]} Ke5 {[%emt 0:00:18]} 61. Qg5+ {[%emt 0:00:08]} Kd4 {[%emt 0:00:31]} 62. Qc4# {[%emt 0:00:10]} 1-0

[Event "DVM U12w 2024"]
[Site "Bad Homburg"]
[Date "2024.12.28"]
[Round "4"]
[White "Wolf, Aurelia"]
[Black "Slowik, Anna"]
[Result "1-0"]
[ECO "C24"]
[WhiteElo "1471"]
[BlackElo "1103"]
[Annotator "NA RC"]
[PlyCount "53"]
[EventDate "2024.12.23"]
[EventType "team-tourn"]
[EventRounds "7"]
[EventCountry "GER"]
[SourceTitle "playchess.com"]
[Source "ChessBase"]
[SourceQuality "1"]
[TimeControl "40/5400+30:1800+30"]

1. e4 {[%emt 0:00:03]} e5 {[%emt 0:00:07]} 2. Nf3 {[%emt 0:00:02]} Nc6 {[%emt 0:00:08]} 3. Bc4 {[%emt 0:00:06]} Nf6 {[%emt 0:00:08]} 4. d3 {[%emt 0:00:06]} d5 {[%emt 0:00:07]} 5. exd5 {[%emt 0:00:12]} Nxd5 {[%emt 0:00:12]} 6. c3 {[%emt 0:00:25]} Nb6 {[%emt 0:00:11]} 7. Bb3 {[%emt 0:01:01]} Bf5 {[%emt 0:00:27]} 8. d4 {[%emt 0:01:05]} exd4 {[%emt 0:00:13]} 9. cxd4 {[%emt 0:00:17]} Qd7 {[%emt 0:00:21]} 10. d5 {[%emt 0:01:41]} Nb4 {[%emt 0:10:52]} 11. O-O {[%emt 0:02:10]} O-O-O {[%emt 0:02:49]} 12. Ne5 {[%emt 0:01:53]} Qe7 {[%emt 0:02:56]} 13. Re1 {[%emt 0:02:04]} Qf6 {[%emt 0:02:03]} 14. Nc3 {[%emt 0:02:21]} Re8 {[%emt 0:07:59]} 15. Nf3 {[%emt 0:03:26]} Bd6 {[%emt 0:03:49]} 16. Bg5 {[%emt 0:03:39]} Qg6 {[%emt 0:02:03]} 17. Qd2 {[%emt 0:00:45]} Bc2 {[%emt 0:05:04]} 18. Rxe8+ {[%emt 0:00:52]} Rxe8 {[%emt 0:00:12]} 19. Re1 {[%emt 0:00:21]} Rxe1+ {[%emt 0:00:34]} 20. Qxe1 {[%emt 0:00:19]} f6 {[%emt 0:00:57]} 21. Qe6+ {[%emt 0:03:31]} Kd8 {[%emt 0:01:56]} 22. Bh4 {[%emt 0:01:24]} Bxb3 {[%emt 0:02:08]} 23. axb3 {[%emt 0:00:11]} Qc2 {[%emt 0:10:33]} 24. Qg8+ {[%emt 0:01:23]} Kd7 {[%emt 0:00:31]} 25. Qxg7+ {[%emt 0:00:22]} Be7 {[%emt 0:00:13]} 26. Ne5+ {[%emt 0:02:36]} Ke8 {[%emt 0:01:18]} 27. Qf7+ {[%emt 0:00:26]} 1-0

[Event "DVM U12w 2024"]
[Site "Bad Homburg"]
[Date "2024.12.28"]
[Round "4"]
[White "Helbig, Frieda"]
[Black "Subocz, Emma"]
[Result "0-1"]
[ECO "B21"]
[WhiteElo "1443"]
[BlackElo "1106"]
[Annotator "NA RC"]
[PlyCount "100"]
[EventDate "2024.12.23"]
[EventType "team-tourn"]
[EventRounds "7"]
[EventCountry "GER"]
[SourceTitle "playchess.com"]
[Source "ChessBase"]
[SourceQuality "1"]
[TimeControl "40/5400+30:1800+30"]

1. e4 {[%emt 0:00:02]} c5 {[%emt 0:00:01]} 2. d4 {[%emt 0:00:13]} cxd4 {[%emt 0:00:06]} 3. c3 {[%emt 0:00:10]} dxc3 {[%emt 0:00:05]} 4. Nxc3 {[%emt 0:00:11]} d6 {[%emt 0:00:06]} 5. Bc4 {[%emt 0:00:08]} Nc6 {[%emt 0:00:09]} 6. Nf3 {[%emt 0:00:24]} Nf6 {[%emt 0:00:34]} 7. e5 {[%emt 0:00:10]} dxe5 {[%emt 0:00:11]} 8. Qxd8+ {[%emt 0:00:12]} Kxd8 {[%emt 0:00:05]} 9. Ng5 {[%emt 0:00:18]} Kc7 {[%emt 0:03:05]} 10. Nb5+ {[%emt 0:00:41]} Kb6 {[%emt 0:01:35]} 11. Be3+ {[%emt 0:00:22]} Ka5 {[%emt 0:01:11]} 12. a3 {[%emt 0:00:28]} e6 {[%emt 0:08:20]} 13. b4+ {[%emt 0:00:27]} Nxb4 {[%emt 0:00:53]} 14. axb4+ {[%emt 0:00:20]} Kxb4 {[%emt 0:00:11]} 15. Rc1 {[%emt 0:00:16]} Bd7 {[%emt 0:02:46]} 16. Bd2+ {[%emt 0:00:27]} Kc5 {[%emt 0:01:20]} 17. Bxe6+ {[%emt 0:00:56]} Kxb5 {[%emt 0:00:17]} 18. Bxd7+ {[%emt 0:00:26]} Nxd7 {[%emt 0:00:12]} 19. O-O {[%emt 0:00:27]} f6 {[%emt 0:02:52]} 20. Ne4 {[%emt 0:00:20]} Nc5 {[%emt 0:00:56]} 21. Rb1+ {[%emt 0:00:34]} Kc6 {[%emt 0:00:27]} 22. Rfc1 {[%emt 0:00:16]} b6 {[%emt 0:00:15]} 23. Be3 {[%emt 0:00:17]} Be7 {[%emt 0:00:56]} 24. Rc2 {[%emt 0:00:19]} Rhd8 {[%emt 0:00:36]} 25. h3 {[%emt 0:00:18]} h6 {[%emt 0:01:50]} 26. Rbc1 {[%emt 0:00:19]} Rd5 {[%emt 0:01:39]} 27. Nc3 {[%emt 0:00:59]} Rd3 {[%emt 0:01:02]} 28. Na4 {[%emt 0:01:36]} Rad8 {[%emt 0:01:57]} 29. Nxc5 {[%emt 0:01:02]} Rd1+ {[%emt 0:00:24]} 30. Rxd1 {[%emt 0:00:21]} Rxd1+ {[%emt 0:00:00]} 31. Kh2 {[%emt 0:00:33]} Bxc5 {[%emt 0:00:00]} 32. Ra2 {[%emt 0:00:46]} Bxe3 {[%emt 0:00:00]} 33. fxe3 {[%emt 0:01:28]} Kb7 {[%emt 0:00:00]} 34. Rc2 {[%emt 0:00:05]} Rd7 {[%emt 0:00:00]} 35. e4 {[%emt 0:00:48]} a5 {[%emt 0:00:00]} 36. Ra2 {[%emt 0:00:00]} Ka6 {[%emt 0:00:00]} 37. Rc2 {[%emt 0:00:00]} Rb7 {[%emt 0:00:18]} 38. Rc8 {[%emt 0:00:46]} b5 {[%emt 0:00:30]} 39. Rc6+ {[%emt 0:00:18]} Rb6 {[%emt 0:00:16]} 40. Rc8 {[%emt 0:00:09]} b4 {[%emt 0:00:11]} 41. Ra8+ {[%emt 0:30:07]} Kb5 {[%emt 0:30:07]} 42. Rc8 {[%emt 0:00:15]} a4 {[%emt 0:00:55]} 43. Rc7 {[%emt 0:00:13]} a3 {[%emt 0:00:22]} 44. Rxg7 {[%emt 0:00:10]} a2 {[%emt 0:00:17]} 45. Rg6 {[%emt 0:00:05]} a1=Q {[%emt 0:00:22]} 46. Rxh6 {[%emt 0:00:11]} Qc1 {[%emt 0:00:34]} 47. Rg6 {[%emt 0:00:11]} Rc6 {[%emt 0:00:42]} 48. h4 {[%emt 0:00:09]} Qf4+ {[%emt 0:00:13]} 49. Kh3 {[%emt 0:00:18]} Rc3+ {[%emt 0:00:20]} 50. Rg3 {[%emt 0:00:38]} Qxg3# {[%emt 0:00:10]} 0-1

[Event "DVM U12w 2024"]
[Site "Bad Homburg"]
[Date "2024.12.28"]
[Round "4"]
[White "Doescher, Nayla"]
[Black "Glotz, Katharina"]
[Result "1/2-1/2"]
[ECO "B30"]
[WhiteElo "1437"]
[BlackElo "1656"]
[Annotator "NA RC"]
[PlyCount "114"]
[EventDate "2024.12.23"]
[EventType "team-tourn"]
[EventRounds "7"]
[EventCountry "GER"]
[SourceTitle "playchess.com"]
[Source "ChessBase"]
[SourceQuality "1"]
[TimeControl "40/5400+30:1800+30"]

1. e4 {[%emt 0:00:01]} c5 {[%emt 0:00:11]} 2. Nf3 {[%emt 0:00:17]} Nc6 {[%emt 0:00:14]} 3. Bb5 {[%emt 0:02:43]} e6 {[%emt 0:02:50]} 4. Bxc6 {[%emt 0:04:34]} bxc6 {[%emt 0:00:18]} 5. O-O {[%emt 0:02:29]} d5 {[%emt 0:01:22]} 6. e5 {[%emt 0:01:17]} Ne7 {[%emt 0:01:46]} 7. Nc3 {[%emt 0:02:00]} Ba6 {[%emt 0:04:42]} 8. Re1 {[%emt 0:01:37]} Nc8 {[%emt 0:01:27]} 9. d3 {[%emt 0:02:03]} Be7 {[%emt 0:01:07]} 10. Bd2 {[%emt 0:01:04]} O-O {[%emt 0:02:10]} 11. h3 {[%emt 0:03:36]} Nb6 {[%emt 0:01:25]} 12. Nh2 {[%emt 0:02:19]} Qc8 {[%emt 0:04:08]} 13. Qg4 {[%emt 0:03:12]} Kh8 {[%emt 0:01:05]} 14. Rad1 {[%emt 0:09:18]} c4 {[%emt 0:01:30]} 15. d4 {[%emt 0:01:12]} c5 {[%emt 0:03:15]} 16. Bg5 {[%emt 0:07:13]} Qd8 {[%emt 0:05:13]} 17. Bxe7 {[%emt 0:04:03]} Qxe7 {[%emt 0:00:18]} 18. Nf3 {[%emt 0:03:30]} Bb7 {[%emt 0:02:11]} 19. Nh2 {[%emt 0:09:32]} a5 {[%emt 0:01:12]} 20. a3 {[%emt 0:01:55]} Bc6 {[%emt 0:01:35]} 21. b3 {[%emt 0:07:32]} cxb3 {[%emt 0:02:22]} 22. cxb3 {[%emt 0:01:11]} c4 {[%emt 0:00:38]} 23. bxc4 {[%emt 0:02:59]} Nxc4 {[%emt 0:01:12]} 24. a4 {[%emt 0:01:31]} Qb4 {[%emt 0:03:21]} 25. Ne2 {[%emt 0:06:18]} Qxa4 {[%emt 0:01:35]} 26. Nf4 {[%emt 0:02:27]} Qb3 {[%emt 0:06:48]} 27. Rb1 {[%emt 0:02:49]} Qa3 {[%emt 0:02:03]} 28. Nh5 {[%emt 0:04:59]} Rg8 {[%emt 0:00:17]} 29. Nf3 {[%emt 0:01:39]} a4 {[%emt 0:06:36]} 30. Qh4 {[%emt 0:03:37]} Qf8 {[%emt 0:04:00]} 31. Qf4 {[%emt 0:03:57]} Qe7 {[%emt 0:01:34]} 32. Rec1 {[%emt 0:01:04]} a3 {[%emt 0:00:39]} 33. Nd2 {[%emt 0:01:16]} a2 {[%emt 0:03:00]} 34. Ra1 {[%emt 0:00:19]} Bb5 {[%emt 0:00:09]} 35. Rc2 {[%emt 0:00:57]} Nxd2 {[%emt 0:00:50]} 36. Qxd2 {[%emt 0:00:28]} Bc4 {[%emt 0:00:14]} 37. Nf4 {[%emt 0:00:54]} Ra3 {[%emt 0:05:37]} 38. Ne2 {[%emt 0:00:51]} Rd3 {[%emt 0:01:31]} 39. Qa5 {[%emt 0:00:36]} Qa3 {[%emt 0:01:27]} 40. Qc7 {[%emt 0:00:36]} Rf8 {[%emt 0:01:56]} 41. Qb6 {[%emt 0:02:09]} Rb3 {[%emt 0:00:20]} 42. Qd6 {[%emt 0:06:16]} Qxd6 {[%emt 0:00:47]} 43. exd6 {[%emt 0:00:18]} Rb1+ {[%emt 0:00:47]} 44. Rc1 {[%emt 0:03:06]} Bd3 {[%emt 0:02:28]} 45. Rxa2 {[%emt 0:01:19]} Rxc1+ {[%emt 0:00:37]} 46. Nxc1 {[%emt 0:00:18]} Bc4 {[%emt 0:00:11]} 47. Ra7 {[%emt 0:00:58]} Kg8 {[%emt 0:00:43]} 48. Rb7 {[%emt 0:01:20]} Rd8 {[%emt 0:00:55]} 49. Rb6 {[%emt 0:04:06]} Kf8 {[%emt 0:01:01]} 50. f3 {[%emt 0:01:22]} f6 {[%emt 0:00:19]} 51. f4 {[%emt 0:01:25]} h6 {[%emt 0:01:00]} 52. Kf2 {[%emt 0:01:12]} g5 {[%emt 0:03:24]} 53. g3 {[%emt 0:00:47]} Rd7 {[%emt 0:03:41]} 54. Rc6 {[%emt 0:03:31]} Bb5 {[%emt 0:00:40]} 55. Rb6 {[%emt 0:01:22]} Ba4 {[%emt 0:01:19]} 56. Nd3 {[%emt 0:01:07]} Bc2 {[%emt 0:00:48]} 57. Nc5 {[%emt 0:00:37]} Ra7 {[%emt 0:01:12]} 1/2-1/2

[Event "DVM U12w 2024"]
[Site "Bad Homburg"]
[Date "2024.12.28"]
[Round "4"]
[White "Winkler, Anni"]
[Black "Kuznetsova, Sofia"]
[Result "1-0"]
[ECO "D07"]
[WhiteElo "1404"]
[BlackElo "926"]
[Annotator "NA RC"]
[PlyCount "57"]
[EventDate "2024.12.23"]
[EventType "team-tourn"]
[EventRounds "7"]
[EventCountry "GER"]
[SourceTitle "playchess.com"]
[Source "ChessBase"]
[SourceQuality "1"]
[TimeControl "40/5400+30:1800+30"]

1. d4 {[%emt 0:00:05]} d5 {[%emt 0:00:05]} 2. Nf3 {[%emt 0:00:49]} Nc6 {[%emt 0:00:25]} 3. c4 {[%emt 0:01:11]} e6 {[%emt 0:00:30]} 4. Nc3 {[%emt 0:00:25]} dxc4 {[%emt 0:00:20]} 5. Bf4 {[%emt 0:01:27]} a6 {[%emt 0:00:19]} 6. a4 {[%emt 0:00:50]} Bb4 {[%emt 0:02:16]} 7. e4 {[%emt 0:01:18]} Nf6 {[%emt 0:00:00]} 8. e5 {[%emt 0:03:13]} Ne4 {[%emt 0:00:00]} 9. Qc2 {[%emt 0:05:14]} Nxc3 {[%emt 0:03:22]} 10. bxc3 {[%emt 0:00:17]} Be7 {[%emt 0:00:11]} 11. Bxc4 {[%emt 0:04:59]} O-O {[%emt 0:01:03]} 12. O-O {[%emt 0:03:04]} h6 {[%emt 0:00:33]} 13. Rad1 {[%emt 0:01:26]} Na5 {[%emt 0:02:36]} 14. Ba2 {[%emt 0:02:44]} c6 {[%emt 0:00:19]} 15. Bb1 {[%emt 0:02:09]} f5 {[%emt 0:00:31]} 16. c4 {[%emt 0:03:39]} b5 {[%emt 0:02:21]} 17. cxb5 {[%emt 0:02:22]} axb5 {[%emt 0:00:22]} 18. axb5 {[%emt 0:03:58]} cxb5 {[%emt 0:00:08]} 19. Ba2 {[%emt 0:01:40]} Qd7 {[%emt 0:04:10]} 20. d5 {[%emt 0:00:58]} Kh8 {[%emt 0:02:24]} 21. dxe6 {[%emt 0:01:39]} Qc6 {[%emt 0:00:23]} 22. Qb1 {[%emt 0:01:30]} Rb8 {[%emt 0:00:31]} 23. Rc1 {[%emt 0:00:54]} Qb6 {[%emt 0:00:13]} 24. Be3 {[%emt 0:01:02]} Qa6 {[%emt 0:00:31]} 25. Nd4 {[%emt 0:01:38]} f4 {[%emt 0:01:36]} 26. Bd2 {[%emt 0:00:30]} Qb6 {[%emt 0:01:25]} 27. Bxa5 {[%emt 0:00:28]} Qxd4 {[%emt 0:01:09]} 28. Rfd1 {[%emt 0:04:25]} Qxe5 {[%emt 0:00:50]} 29. Bc7 {[%emt 0:01:01]} 1-0

[Event "DVM U12w 2024"]
[Site "Bad Homburg"]
[Date "2024.12.28"]
[Round "4"]
[White "Ulianova, Anna"]
[Black "Seyedfakhari, Elena"]
[Result "1-0"]
[ECO "C31"]
[WhiteElo "1267"]
[BlackElo "986"]
[Annotator "NA RC"]
[PlyCount "67"]
[EventDate "2024.12.23"]
[EventType "team-tourn"]
[EventRounds "7"]
[EventCountry "GER"]
[SourceTitle "playchess.com"]
[Source "ChessBase"]
[SourceQuality "1"]
[TimeControl "40/5400+30:1800+30"]

1. e4 {[%emt 0:00:03]} e5 {[%emt 0:00:12]} 2. f4 {[%emt 0:00:06]} d5 {[%emt 0:00:20]} 3. exd5 {[%emt 0:00:12]} Qxd5 {[%emt 0:00:37]} 4. Nc3 {[%emt 0:00:15]} Qc6 {[%emt 0:00:15]} 5. Bb5 {[%emt 0:00:30]} Bd7 {[%emt 0:00:40]} 6. Bxc6 {[%emt 0:00:02]} Bxc6 {[%emt 0:00:13]} 7. Nf3 {[%emt 0:00:18]} Nd7 {[%emt 0:00:20]} 8. O-O {[%emt 0:00:27]} Bc5+ {[%emt 0:00:11]} 9. Kh1 {[%emt 0:00:25]} Ngf6 {[%emt 0:00:31]} 10. fxe5 {[%emt 0:00:13]} Ng4 {[%emt 0:00:23]} 11. d4 {[%emt 0:01:06]} Bb6 {[%emt 0:00:41]} 12. h3 {[%emt 0:00:18]} Bxf3 {[%emt 0:01:31]} 13. Qxf3 {[%emt 0:01:10]} Nh6 {[%emt 0:00:27]} 14. Bxh6 {[%emt 0:00:14]} gxh6 {[%emt 0:00:11]} 15. Qxf7+ {[%emt 0:00:11]} Kd8 {[%emt 0:00:20]} 16. Nd5 {[%emt 0:00:33]} Bxd4 {[%emt 0:00:53]} 17. Qe7+ {[%emt 0:00:38]} Kc8 {[%emt 0:00:20]} 18. e6 {[%emt 0:01:11]} b6 {[%emt 0:00:34]} 19. Qxd7+ {[%emt 0:00:28]} Kb7 {[%emt 0:00:26]} 20. Qxc7+ {[%emt 0:00:09]} Ka6 {[%emt 0:00:19]} 21. Nb4+ {[%emt 0:00:32]} Kb5 {[%emt 0:00:35]} 22. Rf5+ {[%emt 0:00:55]} Ka4 {[%emt 0:00:27]} 23. b3+ {[%emt 0:00:37]} Ka3 {[%emt 0:00:21]} 24. Qf4 {[%emt 0:00:47]} Bxa1 {[%emt 0:00:19]} 25. Qc1+ {[%emt 0:00:28]} Bb2 {[%emt 0:00:16]} 26. Qf4 {[%emt 0:02:03]} Rad8 {[%emt 0:00:29]} 27. Nc6 {[%emt 0:00:24]} Rd1+ {[%emt 0:00:21]} 28. Kh2 {[%emt 0:00:11]} Bc3 {[%emt 0:01:04]} 29. Qxh6 {[%emt 0:02:09]} Bd2 {[%emt 0:00:41]} 30. Qg7 {[%emt 0:00:42]} Bc3 {[%emt 0:00:31]} 31. Qxc3 {[%emt 0:00:22]} Rg8 {[%emt 0:00:33]} 32. Rf4 {[%emt 0:01:15]} Kxa2 {[%emt 0:00:44]} 33. Ra4+ {[%emt 0:00:08]} Kb1 {[%emt 0:00:26]} 34. Ra1# {[%emt 0:00:47]} 1-0

[Event "DVM U12w 2024"]
[Site "Bad Homburg"]
[Date "2024.12.28"]
[Round "4"]
[White "Ising, Svea"]
[Black "Lange, Lene Marie"]
[Result "1-0"]
[ECO "C42"]
[WhiteElo "1221"]
[BlackElo "1501"]
[Annotator "NA RC"]
[PlyCount "38"]
[EventDate "2024.12.23"]
[EventType "team-tourn"]
[EventRounds "7"]
[EventCountry "GER"]
[SourceTitle "playchess.com"]
[Source "ChessBase"]
[SourceQuality "1"]
[TimeControl "40/5400+30:1800+30"]

1. e4 {[%emt 0:00:02]} e5 {[%emt 0:00:11]} 2. Nf3 {[%emt 0:00:08]} Nf6 {[%emt 0:00:20]} 3. Nxe5 {[%emt 0:00:18]} d6 {[%emt 0:00:07]} 4. Nf3 {[%emt 0:00:16]} Nxe4 {[%emt 0:00:07]} 5. d4 {[%emt 0:00:15]} d5 {[%emt 0:01:07]} 6. Bd3 {[%emt 0:00:19]} Nf6 {[%emt 0:00:12]} 7. Bf4 {[%emt 0:01:30]} Nc6 {[%emt 0:01:13]} 8. h3 {[%emt 0:02:56]} Bd6 {[%emt 0:00:43]} 9. Bg5 {[%emt 0:01:58]} Be7 {[%emt 0:02:35]} 10. Qe2 {[%emt 0:02:36]} O-O {[%emt 0:01:38]} 11. O-O {[%emt 0:01:27]} Re8 {[%emt 0:01:19]} 12. Re1 {[%emt 0:06:01]} Be6 {[%emt 0:04:02]} 13. Nc3 {[%emt 0:05:53]} a6 {[%emt 0:04:51]} 14. Qe3 {[%emt 0:12:20]} Qd6 {[%emt 0:07:38]} 15. Nh4 {[%emt 0:09:44]} Qb4 {[%emt 0:04:46]} 16. Nf5 {[%emt 0:14:49]} Bxf5 {[%emt 0:06:18]} 17. Bxf6 {[%emt 0:01:21]} Bxd3 {[%emt 0:02:11]} 18. Nxd5 {[%emt 0:06:28]} Qd6 {[%emt 0:05:22]} 19. Nxe7+ {[%emt 0:02:27]} Kf8 {[%emt 0:02:19]} 1-0

[Event "DVM U12w 2024"]
[Site "Bad Homburg"]
[Date "2024.12.28"]
[Round "4"]
[White "Reuber, Ella"]
[Black "Albrecht, Sidney Jenna"]
[Result "1/2-1/2"]
[ECO "E91"]
[WhiteElo "1188"]
[BlackElo "1483"]
[Annotator "NA RC"]
[PlyCount "41"]
[EventDate "2024.12.23"]
[EventType "team-tourn"]
[EventRounds "7"]
[EventCountry "GER"]
[SourceTitle "playchess.com"]
[Source "ChessBase"]
[SourceQuality "1"]
[TimeControl "40/5400+30:1800+30"]

1. d4 {[%emt 0:00:01]} Nf6 {[%emt 0:00:06]} 2. c4 {[%emt 0:00:04]} g6 {[%emt 0:00:07]} 3. Nc3 {[%emt 0:00:12]} Bg7 {[%emt 0:00:09]} 4. e4 {[%emt 0:00:09]} d6 {[%emt 0:00:08]} 5. Be2 {[%emt 0:00:39]} O-O {[%emt 0:00:12]} 6. Nf3 {[%emt 0:00:27]} Nbd7 {[%emt 0:00:22]} 7. O-O {[%emt 0:00:35]} c5 {[%emt 0:00:59]} 8. d5 {[%emt 0:00:56]} h6 {[%emt 0:05:55]} 9. h3 {[%emt 0:01:01]} Qe8 {[%emt 0:08:39]} 10. Be3 {[%emt 0:00:36]} b6 {[%emt 0:02:03]} 11. Qd2 {[%emt 0:01:19]} Kh7 {[%emt 0:00:42]} 12. Bd3 {[%emt 0:03:27]} e5 {[%emt 0:03:41]} 13. Nb5 {[%emt 0:01:33]} Qe7 {[%emt 0:01:53]} 14. a3 {[%emt 0:01:12]} a6 {[%emt 0:02:13]} 15. Nc3 {[%emt 0:00:38]} g5 {[%emt 0:04:24]} 16. Rab1 {[%emt 0:01:30]} Nh5 {[%emt 0:02:00]} 17. b4 {[%emt 0:02:38]} Nf4 {[%emt 0:02:38]} 18. Bxf4 {[%emt 0:02:31]} exf4 {[%emt 0:00:36]} 19. Rfe1 {[%emt 0:01:11]} Kh8 {[%emt 0:01:43]} 20. Bc2 {[%emt 0:00:57]} Ne5 {[%emt 0:02:16]} 21. Nxe5 {[%emt 0:01:37]} 1/2-1/2

[Event "DVM U12w 2024"]
[Site "Bad Homburg"]
[Date "2024.12.28"]
[Round "4"]
[White "Andreeva, Katharina"]
[Black "Briese, Sophie"]
[Result "1/2-1/2"]
[ECO "B21"]
[WhiteElo "1164"]
[BlackElo "1465"]
[Annotator "NA RC"]
[PlyCount "54"]
[EventDate "2024.12.23"]
[EventType "team-tourn"]
[EventRounds "7"]
[EventCountry "GER"]
[SourceTitle "playchess.com"]
[Source "ChessBase"]
[SourceQuality "1"]
[TimeControl "40/5400+30:1800+30"]

1. e4 {[%emt 0:00:03]} c5 {[%emt 0:00:07]} 2. d4 {[%emt 0:00:06]} cxd4 {[%emt 0:00:07]} 3. c3 {[%emt 0:00:14]} d3 {[%emt 0:00:06]} 4. Bxd3 {[%emt 0:00:07]} Nc6 {[%emt 0:00:07]} 5. Nf3 {[%emt 0:00:13]} g6 {[%emt 0:00:20]} 6. O-O {[%emt 0:00:13]} Bg7 {[%emt 0:00:08]} 7. Bf4 {[%emt 0:01:03]} d6 {[%emt 0:00:20]} 8. Nbd2 {[%emt 0:04:43]} Nf6 {[%emt 0:02:44]} 9. Re1 {[%emt 0:04:36]} O-O {[%emt 0:01:37]} 10. Nc4 {[%emt 0:05:28]} Bd7 {[%emt 0:06:44]} 11. e5 {[%emt 0:02:58]} dxe5 {[%emt 0:01:40]} 12. Nfxe5 {[%emt 0:01:02]} Nxe5 {[%emt 0:01:18]} 13. Nxe5 {[%emt 0:01:49]} Rc8 {[%emt 0:03:38]} 14. Nxd7 {[%emt 0:01:26]} Qxd7 {[%emt 0:00:26]} 15. Qe2 {[%emt 0:08:39]} a6 {[%emt 0:07:43]} 16. Rad1 {[%emt 0:02:17]} Qa4 {[%emt 0:00:47]} 17. Bg3 {[%emt 0:03:41]} e6 {[%emt 0:03:16]} 18. a3 {[%emt 0:04:26]} Rfd8 {[%emt 0:01:36]} 19. Bc2 {[%emt 0:02:09]} Qc6 {[%emt 0:01:25]} 20. Rxd8+ {[%emt 0:06:00]} Rxd8 {[%emt 0:00:11]} 21. Rd1 {[%emt 0:01:01]} Rxd1+ {[%emt 0:02:09]} 22. Qxd1 {[%emt 0:01:42]} h6 {[%emt 0:00:27]} 23. Qd6 {[%emt 0:03:15]} Qb5 {[%emt 0:01:12]} 24. b4 {[%emt 0:02:04]} Qe2 {[%emt 0:04:58]} 25. Qd1 {[%emt 0:02:57]} Qc4 {[%emt 0:01:01]} 26. Be5 {[%emt 0:03:01]} Qa2 {[%emt 0:01:15]} 27. a4 {[%emt 0:01:30]} Qc4 {[%emt 0:02:19]} 1/2-1/2